bitfinex/quotes_BTCUSD_20250616
["timestamp","ask_amount","ask_price","bid_price","bid_amount"]
[1750072564957,1.00599793,106890.0,106880.0,0.28660208]
[1750072565174,1.01535264,106890.0,106880.0,0.28660208]
[1750072568077,1.01535264,106890.0,106880.0,0.28177208]
[1750072568290,1.02470752,106890.0,106880.0,0.28177208]
[1750072568515,1.01535264,106890.0,106880.0,0.28177208]
[1750072569362,1.02470752,106890.0,106880.0,0.28177208]
[1750072569560,1.01535264,106890.0,106880.0,0.28177208]
[1750072570421,1.02470752,106890.0,106880.0,0.26617208]
[1750072570864,0.87166752,106890.0,106880.0,0.26617208]
[1750072571082,1.01535264,106890.0,106880.0,0.26617208]
[1750072573427,1.00599793,106890.0,106880.0,0.26617208]
[1750072573669,1.00599793,106890.0,106880.0,0.28237208]
[1750072574527,1.00599793,106890.0,106880.0,0.28720208]
[1750072575250,1.01535264,106890.0,106880.0,0.28720208]
[1750072575488,1.00599793,106890.0,106880.0,0.28720208]
[1750072576880,1.01535264,106890.0,106880.0,0.28720208]
[1750072577804,1.02470743,106890.0,106880.0,0.26617208]
[1750072578243,1.03406231,106890.0,106880.0,0.26617208]
[1750072578448,1.02470743,106890.0,106880.0,0.26617208]
[1750072580163,1.0340624,106890.0,106880.0,0.26617208]
[1750072580379,1.02470743,106890.0,106880.0,0.26617208]
[1750072583046,1.03406231,106890.0,106880.0,0.26617208]
[1750072584232,1.04341737,106890.0,106880.0,0.26617208]
[1750072584448,1.03406231,106890.0,106880.0,0.26617208]
[1750072584896,1.08527251,106890.0,106880.0,0.26617208]
[1750072585554,1.08527242,106890.0,106880.0,0.26617208]
[1750072586875,1.06917242,106890.0,106880.0,0.26617208]
[1750072587532,1.05981728,106890.0,106880.0,0.26617208]
[1750072587748,1.06917286,106890.0,106880.0,0.26617208]
[1750072587998,1.05981763,106890.0,106880.0,0.26617208]
[1750072588422,1.06917286,106890.0,106880.0,0.26617208]
[1750072588846,1.06917277,106890.0,106880.0,0.26617208]
[1750072589340,1.05981763,106890.0,106880.0,0.26617208]
[1750072590174,1.16541462,106890.0,106880.0,0.26617208]
[1750072590821,1.15605939,106890.0,106880.0,0.26617208]
[1750072591226,0.72246848,106890.0,106880.0,0.26617208]
[1750072591483,1.15605939,106890.0,106880.0,0.26617208]
[1750072591920,1.16541462,106890.0,106880.0,0.26617208]
[1750072592358,1.16541453,106890.0,106880.0,0.26617208]
[1750072593604,1.16541497,106890.0,106880.0,0.26617208]
[1750072594292,1.15605974,106890.0,106880.0,0.26617208]
[1750072594622,0.9936646,106890.0,106880.0,0.26617208]
[1750072594864,0.53431863,106890.0,106880.0,0.26617208]
[1750072595056,0.97726468,106890.0,106880.0,0.26617208]
[1750072595378,0.98661991,106890.0,106880.0,0.26617208]
[1750072595593,1.00271991,106890.0,106880.0,0.26617208]
[1750072596248,0.99336468,106890.0,106880.0,0.26617208]
[1750072596671,1.14636468,106890.0,106880.0,0.26617208]
[1750072596877,1.13700954,106890.0,106880.0,0.26617208]
[1750072597961,1.14636468,106890.0,106880.0,0.26617208]
[1750072598639,1.13700954,106890.0,106880.0,0.26617208]
[1750072598881,1.14636468,106890.0,106880.0,0.26617208]
[1750072599550,0.99336468,106890.0,106880.0,0.26617208]
[1750072599974,1.14636468,106890.0,106880.0,0.26617208]
[1750072601510,1.15571991,106890.0,106880.0,0.26617208]
[1750072602845,1.76706453,106890.0,106880.0,0.22875576]
[1750072603093,1.82055404,106890.0,106880.0,0.23811187]
[1750072603325,1.82709796,106890.0,106880.0,0.24746789]
[1750072603555,1.82055404,106890.0,106880.0,0.23811187]
[1750072603773,1.81774281,106890.0,106880.0,0.22875576]
[1750072603994,1.80184367,106890.0,106880.0,0.03227383]
[1750072604471,1.80838758,106890.0,106880.0,0.22875585]
[1750072605372,1.80184367,106890.0,106880.0,0.22875585]
[1750072605580,1.80838758,106890.0,106880.0,0.22875585]
[1750072606020,1.80838758,106890.0,106880.0,0.23811204]
[1750072606259,1.80184367,106890.0,106880.0,0.23811204]
[1750072606719,1.37479664,106890.0,106880.0,0.23811204]
[1750072606944,1.28735311,106890.0,106880.0,0.23811204]
[1750072607371,1.28080923,106890.0,106880.0,0.23811204]
[1750072607803,1.28080923,106890.0,106880.0,0.22875585]
[1750072607804,1.35891786,106890.0,106880.0,0.22875585]
[1750072608231,1.36546175,106890.0,106880.0,0.22875585]
[1750072608473,1.35891786,106890.0,106880.0,0.04163011]
[1750072608679,1.36546176,106890.0,106880.0,0.04163011]
[1750072608893,1.36546178,106890.0,106880.0,0.22875585]
[1750072609117,1.79905269,106890.0,106880.0,0.22875585]
[1750072609333,0.92532695,106890.0,106880.0,0.23811204]
[1750072609540,1.79250877,106890.0,106880.0,0.23811204]
[1750072609987,1.79904946,106890.0,106880.0,0.23811204]
[1750072610397,1.79250877,106890.0,106880.0,0.23811204]
[1750072610619,1.79904944,106890.0,106880.0,0.23811204]
[1750072610829,1.79250877,106890.0,106880.0,0.23811204]
[1750072611041,1.799049,106890.0,106880.0,0.23811204]
[1750072611251,1.799049,106890.0,106880.0,0.22875585]
[1750072612144,1.79250877,106890.0,106880.0,0.22875585]
[1750072612782,1.79904891,106890.0,106880.0,0.22875585]
[1750072612987,1.79904895,106890.0,106880.0,0.22875585]
[1750072613228,1.79904894,106890.0,106880.0,0.22875585]
[1750072613678,1.79904868,106890.0,106880.0,0.22875585]
[1750072614095,1.79904861,106890.0,106880.0,0.22875585]
[1750072614299,1.79250877,106890.0,106880.0,0.22875585]
[1750072614514,1.79904861,106890.0,106880.0,0.22875585]
[1750072614756,1.79904869,106890.0,106880.0,0.22875585]
[1750072614962,1.79250877,106890.0,106880.0,0.22875585]
[1750072615166,1.79904873,106890.0,106880.0,0.22875585]
[1750072615371,1.79904875,106890.0,106880.0,0.22875585]
[1750072615783,1.79904838,106890.0,106880.0,0.23811204]
[1750072616208,1.79250877,106890.0,106880.0,0.23811204]
[1750072616467,1.79904842,106890.0,106880.0,0.23811204]
[1750072616664,1.79904842,106890.0,106880.0,0.03227383]
[1750072616871,1.79250877,106890.0,106880.0,0.03227383]
[1750072617073,1.79904835,106890.0,106880.0,0.03227383]
[1750072617227,1.79250877,106890.0,106880.0,0.03227383]
[1750072617451,1.79904829,106890.0,106880.0,0.03227383]
[1750072617799,1.79250877,106890.0,106880.0,0.03227383]
[1750072618013,1.76459474,106890.0,106880.0,0.03227383]
[1750072618213,1.82795215,106890.0,106880.0,0.03227383]
[1750072618356,1.8279519,106890.0,106880.0,0.03227383]
[1750072618573,1.82795193,106890.0,106880.0,0.03227383]
[1750072618771,1.86763192,106890.0,106880.0,0.03227383]
[1750072619175,1.86663192,106890.0,106880.0,0.03127383]
[1750072619378,1.8600928,106890.0,106880.0,0.03127383]
[1750072619625,1.86663187,106890.0,106880.0,0.03227383]
[1750072619914,1.83141317,106890.0,106880.0,0.03227383]
[1750072620114,1.8248741,106890.0,106880.0,0.03227383]
[1750072620339,1.8248741,106890.0,106850.0,0.22804059]
[1750072620340,0.01871476,106860.0,106850.0,0.22804059]
[1750072620566,1.68101552,106860.0,106850.0,0.20637504]
[1750072620765,1.70334674,106860.0,106850.0,0.21573369]
[1750072620973,1.72210923,106860.0,106850.0,0.1970164]
[1750072621209,1.75704084,106860.0,106850.0,0.1970164]
[1750072621619,1.74768298,106860.0,106850.0,0.00047921]
[1750072621813,1.77062531,106860.0,106850.0,0.00347921]
[1750072622035,1.76408298,106860.0,106850.0,0.00347921]
[1750072622247,1.74768298,106860.0,106850.0,0.00047921]
[1750072623488,1.76608298,106860.0,106850.0,0.00047921]
[1750072623704,1.76608298,106860.0,106850.0,0.00247921]
[1750072624067,2.23685973,106860.0,106850.0,0.00247921]
[1750072624279,2.1215012,106860.0,106850.0,0.00247921]
[1750072624487,2.3142212,106860.0,106850.0,0.00047921]
[1750072624696,2.36999997,106860.0,106850.0,0.00047921]
[1750072625471,1.01344847,106860.0,106850.0,0.00047921]
[1750072625669,2.3135112,106860.0,106850.0,0.00047921]
[1750072626088,0.35871843,106840.0,106830.0,0.24569266]
[1750072626296,1.67205742,106840.0,106830.0,0.21808674]
[1750072626507,1.51655254,106840.0,106830.0,0.22744679]
[1750072626714,0.48665093,106840.0,106830.0,0.22744679]
[1750072626929,1.54467836,106840.0,106830.0,0.24784679]
[1750072627377,1.55503806,106840.0,106830.0,0.24784679]
[1750072627641,1.73287478,106840.0,106830.0,0.21976767]
[1750072627961,1.74223457,106840.0,106830.0,0.21976767]
[1750072628358,1.59845282,106840.0,106830.0,0.21976767]
[1750072628566,1.56461702,106840.0,106830.0,0.22912772]
[1750072628990,1.56461702,106840.0,106830.0,0.21040753]
[1750072628991,1.74245347,106840.0,106830.0,0.21040753]
[1750072629408,1.74245347,106840.0,106830.0,0.21976775]
[1750072629864,1.74245347,106840.0,106830.0,0.19168665]
[1750072630076,1.76359395,106840.0,106830.0,0.20104777]
[1750072630279,1.75423434,106840.0,106830.0,0.20104777]
[1750072630497,1.74487464,106840.0,106830.0,0.00447379]
[1750072632024,1.74487464,106840.0,106830.0,0.19168711]
[1750072632250,1.72987464,106840.0,106830.0,0.21040834]
[1750072634291,1.72987464,106840.0,106830.0,0.21976883]
[1750072634503,1.57651464,106840.0,106830.0,0.22912923]
[1750072634719,1.76959464,106840.0,106830.0,0.00447379]
[1750072634933,1.76959464,106840.0,106830.0,0.20104777]
[1750072635177,1.57651464,106840.0,106830.0,0.21040826]
[1750072635381,1.57651464,106840.0,106830.0,0.20104777]
[1750072635584,1.76955464,106840.0,106830.0,0.21040826]
[1750072636831,1.76019485,106840.0,106830.0,0.00447379]
[1750072637586,0.89301303,106840.0,106830.0,0.00447379]
[1750072637791,1.76019485,106840.0,106830.0,0.00447379]
[1750072638802,1.77579485,106840.0,106830.0,0.00447379]
[1750072639547,1.58275485,106840.0,106830.0,0.00447379]
[1750072639978,0.71557303,106840.0,106830.0,0.00447379]
[1750072640161,2.10967255,106840.0,106830.0,0.00447379]
[1750072640430,2.11618265,106840.0,106830.0,0.00360379]
[1750072640643,1.00229982,106840.0,106830.0,0.00360379]
[1750072640851,2.30958265,106840.0,106830.0,0.00360379]
[1750072641032,2.34025839,106840.0,106830.0,0.00360379]
[1750072641283,1.04599572,106840.0,106830.0,0.00360379]
[1750072641500,2.1523684,106840.0,106830.0,0.00360379]
[1750072641714,0.56469646,106810.0,106800.0,0.25048976]
[1750072641932,0.53116791,106810.0,106800.0,0.26033311]
[1750072642153,1.16136953,106810.0,106800.0,0.26033311]
[1750072642369,0.84279227,106810.0,106800.0,0.22150785]
[1750072642651,0.89532434,106810.0,106800.0,0.19704482]
[1750072642864,0.8859621,106810.0,106800.0,0.19704482]
[1750072643075,1.32049563,106810.0,106800.0,0.20640785]
[1750072643284,1.32149563,106810.0,106800.0,0.00048067]
[1750072643505,1.12805563,106810.0,106800.0,0.19710987]
[1750072643719,1.32197563,106810.0,106800.0,0.19710987]
[1750072643944,0.6935221,106810.0,106800.0,0.19810987]
[1750072644163,1.33807563,106810.0,106800.0,0.19810987]
[1750072644379,1.43807563,106810.0,106800.0,0.01084396]
[1750072644588,1.43707563,106810.0,106800.0,0.01084396]
[1750072644799,1.4287133,106810.0,106800.0,0.00148067]
[1750072645026,1.2347933,106810.0,106800.0,0.18874658]
[1750072645249,1.4126533,106810.0,106800.0,0.18874658]
[1750072645459,0.97811977,106810.0,106800.0,0.18874658]
[1750072645670,1.4126533,106810.0,106800.0,0.18874658]
[1750072645851,1.4126533,106810.0,106800.0,0.00148067]
[1750072645852,1.00753417,106810.0,106800.0,0.00148067]
[1750072646089,1.00753417,106810.0,106800.0,0.20747307]
[1750072646090,1.4420677,106810.0,106800.0,0.20747307]
[1750072646302,1.4420677,106810.0,106800.0,0.19810987]
[1750072646548,1.00753417,106810.0,106800.0,0.20747307]
[1750072646751,1.4420677,106810.0,106800.0,0.19810987]
[1750072647170,1.4420677,106810.0,106800.0,0.20747307]
[1750072647371,1.4127733,106810.0,106800.0,0.21683619]
[1750072647589,1.44049847,106810.0,106800.0,0.23193619]
[1750072647813,0.6246363,106810.0,106800.0,0.25066198]
[1750072648026,0.80288373,106810.0,106800.0,0.27166216]
[1750072648234,1.24424827,106810.0,106800.0,0.27166155]
[1750072648656,1.25361025,106810.0,106800.0,0.27166155]
[1750072648884,1.45022096,106810.0,106800.0,0.27166155]
[1750072649102,1.45022174,106810.0,106800.0,0.27166155]
[1750072649315,1.45022174,106810.0,106800.0,0.27166172]
[1750072649526,1.46858502,106810.0,106800.0,0.27166128]
[1750072649971,1.01532727,106810.0,106800.0,0.00148067]
[1750072650208,1.4663608,106810.0,106800.0,0.00148067]
[1750072650870,1.4822608,106810.0,106800.0,0.00148067]
[1750072651336,1.54750024,106810.0,106800.0,0.00148067]
[1750072651552,1.5103144,106810.0,106800.0,0.00148067]
[1750072651978,1.51681579,106810.0,106800.0,0.00148067]
[1750072652195,1.07578087,106810.0,106800.0,0.00148067]
[1750072652405,1.08228218,106810.0,106800.0,0.00148067]
[1750072652617,1.5168157,106810.0,106800.0,0.00148067]
[1750072653001,1.51681571,106810.0,106800.0,0.00148067]
[1750072653257,1.5103144,106810.0,106800.0,0.00148067]
[1750072653474,1.5168157,106810.0,106800.0,0.00148067]
[1750072654536,1.5103144,106810.0,106800.0,0.00148067]
[1750072654804,1.55981093,106810.0,106800.0,0.00148067]
[1750072655018,1.55330963,106810.0,106800.0,0.00148067]
[1750072655758,1.55881091,106810.0,106800.0,0.00148067]
[1750072655973,1.56081091,106810.0,106800.0,0.00148067]
[1750072656204,1.1197761,106810.0,106800.0,0.00148067]
[1750072656428,1.53065009,106810.0,106800.0,0.00148067]
[1750072656655,1.52414878,106810.0,106800.0,0.00148067]
[1750072656898,1.53065019,106810.0,106800.0,0.00148067]
[1750072657110,1.52414878,106810.0,106800.0,0.00048067]
[1750072657328,1.52414878,106810.0,106800.0,0.00148067]
[1750072657542,1.53065018,106810.0,106800.0,0.00148067]
[1750072658259,1.33629018,106810.0,106800.0,0.00148067]
[1750072658480,1.52414878,106810.0,106800.0,0.00148067]
[1750072658690,1.53065018,106810.0,106800.0,0.00148067]
[1750072659112,1.52414878,106810.0,106800.0,0.00148067]
[1750072659356,1.53065019,106810.0,106800.0,0.00148067]
[1750072659577,1.52414878,106810.0,106800.0,0.00148067]
[1750072659780,1.08961525,106810.0,106800.0,0.00148067]
[1750072659980,1.53065018,106810.0,106800.0,0.00148067]
[1750072660200,1.08961525,106810.0,106800.0,0.00148067]
[1750072660469,1.11131665,106810.0,106800.0,0.00148067]
[1750072660692,1.10481525,106810.0,106800.0,0.00148067]
[1750072661139,1.53934878,106810.0,106800.0,0.00148067]
[1750072661351,1.57636442,106810.0,106800.0,0.00148067]
[1750072661581,1.5828633,106810.0,106800.0,0.00148067]
[1750072662021,1.57636442,106810.0,106800.0,0.00148067]
[1750072662248,1.54584765,106810.0,106800.0,0.00148067]
[1750072662675,1.57637084,106810.0,106800.0,0.00148067]
[1750072662923,1.58286971,106810.0,106800.0,0.00148067]
[1750072663149,1.58530971,106810.0,106800.0,0.00148067]
[1750072663356,1.54178878,106810.0,106800.0,0.00148067]
[1750072663999,1.54828764,106810.0,106800.0,0.00148067]
[1750072664227,1.54178878,106810.0,106800.0,0.01901173]
[1750072664514,1.54830922,106810.0,106800.0,0.01901173]
[1750072664751,1.54830921,106810.0,106800.0,0.01901179]
[1750072664972,1.54630921,106810.0,106800.0,0.01901179]
[1750072665187,1.54630921,106810.0,106800.0,0.00148067]
[1750072665399,1.53978878,106810.0,106800.0,0.01901166]
[1750072665611,1.33930925,106810.0,106800.0,0.01901153]
[1750072665902,1.51956925,106810.0,106800.0,0.00048067]
[1750072666186,1.52256927,106810.0,106800.0,0.01801129]
[1750072666462,1.51604878,106810.0,106800.0,0.01801129]
[1750072666736,1.51604878,106810.0,106800.0,0.00048067]
[1750072666952,1.32580929,106810.0,106800.0,0.01801121]
[1750072667171,0.74799551,106810.0,106800.0,0.25100905]
[1750072667358,1.09990435,106810.0,106800.0,0.24284281]
[1750072667614,1.53159708,106810.0,106800.0,0.26037201]
[1750072667868,1.09054237,106810.0,106800.0,0.26037201]
[1750072668077,1.53159708,106810.0,106800.0,0.26037201]
[1750072668292,1.5220759,106810.0,106800.0,0.26037201]
[1750072668512,1.49428413,106810.0,106800.0,0.26037201]
[1750072668726,1.52661895,106810.0,106800.0,0.26973495]
[1750072668942,1.0642718,106810.0,106800.0,0.26037177]
[1750072669152,1.0920854,106810.0,106800.0,0.26037186]
[1750072669367,1.52009908,106810.0,106800.0,0.2603718]
[1750072669586,1.51074856,106810.0,106800.0,0.26973484]
[1750072669788,1.50238623,106810.0,106800.0,0.26037162]
[1750072670008,1.47455956,106810.0,106800.0,0.26037165]
[1750072670232,1.47455956,106810.0,106800.0,0.26037167]
[1750072670849,1.47455956,106810.0,106800.0,0.2428429]
[1750072671119,1.27783956,106810.0,106800.0,0.26037167]
[1750072671327,1.47439956,106810.0,106800.0,0.2697347]
[1750072671550,1.03986603,106810.0,106800.0,0.2697347]
[1750072671771,1.47439956,106810.0,106800.0,0.26037167]
[1750072672442,1.47439956,106810.0,106800.0,0.25100855]
[1750072672865,1.47439956,106810.0,106800.0,0.23347978]
[1750072673091,1.03986603,106810.0,106800.0,0.26037167]
[1750072673314,1.03986603,106810.0,106800.0,0.25100855]
[1750072673804,1.27783956,106810.0,106800.0,0.25100855]
[1750072674010,1.27783956,106810.0,106800.0,0.23347978]
[1750072674224,1.27783956,106810.0,106800.0,0.25100855]
[1750072674443,0.84330603,106810.0,106800.0,0.26037167]
[1750072674654,1.27783956,106810.0,106800.0,0.26037167]
[1750072674878,1.27783956,106810.0,106800.0,0.2428429]
[1750072675086,1.47439956,106810.0,106800.0,0.2428429]
[1750072675299,1.47439956,106810.0,106800.0,0.25220593]
[1750072675516,1.50360844,106810.0,106800.0,0.25220593]
[1750072675732,1.50360844,106810.0,106800.0,0.26974475]
[1750072675948,1.06907491,106810.0,106800.0,0.26974475]
[1750072676181,1.50360844,106810.0,106800.0,0.26974475]
[1750072676396,1.50360844,106810.0,106800.0,0.26973814]
[1750072676605,1.50360844,106810.0,106800.0,0.27910108]
[1750072676786,1.50360844,106810.0,106800.0,0.26156887]
[1750072677000,1.50360844,106810.0,106800.0,0.27910108]
[1750072677460,1.06907491,106810.0,106800.0,0.26156887]
[1750072677669,1.50360844,106810.0,106800.0,0.27910108]
[1750072677883,1.50360844,106810.0,106800.0,0.25220593]
[1750072678114,1.50360844,106810.0,106800.0,0.26973814]
[1750072678332,1.50360844,106810.0,106800.0,0.25220593]
[1750072678543,1.50360844,106810.0,106800.0,0.26973814]
[1750072678987,1.06907491,106810.0,106800.0,0.26973814]
[1750072679198,1.50360844,106810.0,106800.0,0.25220593]
[1750072679421,1.50360844,106810.0,106800.0,0.26973814]
[1750072679639,1.50360844,106810.0,106800.0,0.25220593]
[1750072680089,1.50360844,106810.0,106800.0,0.26973814]
[1750072680522,1.50360844,106810.0,106800.0,0.27910108]
[1750072680765,1.50360844,106810.0,106800.0,0.26156887]
[1750072680985,1.50360844,106810.0,106800.0,0.2428429]
[1750072681652,1.50360844,106810.0,106800.0,0.25220593]
[1750072681863,0.85401422,106810.0,106800.0,0.27093155]
[1750072682081,1.3072717,106810.0,106800.0,0.27093155]
[1750072682303,1.31663403,106810.0,106800.0,0.27093155]
[1750072682518,1.50388241,106810.0,106800.0,0.27093155]
[1750072682726,1.51324482,106810.0,106800.0,0.20324658]
[1750072682943,1.50388311,106810.0,106800.0,0.20647264]
[1750072683159,1.50388311,106810.0,106800.0,0.1971097]
[1750072683397,1.49452113,106810.0,106800.0,0.1971097]
[1750072683611,1.49452113,106810.0,106800.0,0.18774658]
[1750072683819,1.49452113,106810.0,106800.0,0.19710978]
[1750072684251,1.48515889,106810.0,106800.0,0.19710978]
[1750072685841,1.49179656,106810.0,106800.0,0.18774658]
[1750072686067,1.49179656,106810.0,106800.0,0.00048067]
[1750072686524,1.52885085,106810.0,106800.0,0.00048067]
[1750072686987,1.54495085,106810.0,106800.0,0.00048067]
[1750072687668,1.51710197,106810.0,106800.0,0.00048067]
[1750072690491,1.52364072,106810.0,106800.0,0.00048067]
[1750072690708,1.53584197,106810.0,106800.0,0.00048067]
[1750072690934,1.35371585,106810.0,106800.0,0.00048067]
[1750072691169,1.51933586,106810.0,106800.0,0.19710987]
[1750072691399,0.89644448,106810.0,106800.0,0.19710987]
[1750072691663,1.32443926,106810.0,106800.0,0.25270566]
[1750072692321,1.52861822,106810.0,106800.0,0.26206869]
[1750072692540,1.33097824,106810.0,106800.0,0.19710987]
[1750072692763,1.51267711,106810.0,106800.0,0.18774658]
[1750072692991,1.10008252,106810.0,106800.0,0.00048067]
[1750072693214,1.53461605,106810.0,106800.0,0.00048067]
[1750072693429,1.09354358,106810.0,106800.0,0.00048067]
[1750072693647,1.53461604,106810.0,106800.0,0.00048067]
[1750072693863,1.52807711,106810.0,106800.0,0.19710987]
[1750072694079,1.32161602,106810.0,106800.0,0.19710987]
[1750072694331,1.51921601,106810.0,106800.0,0.19710987]
[1750072694550,1.5192161,106810.0,106800.0,0.19710987]
[1750072694770,1.10050249,106810.0,106800.0,0.19710987]
[1750072695005,1.53503602,106810.0,106800.0,0.00048067]
[1750072695221,1.52849711,106810.0,106800.0,0.00048067]
[1750072695452,1.53503604,106810.0,106800.0,0.00048067]
[1750072695666,1.53503605,106810.0,106800.0,0.00048067]
[1750072696341,1.5071609,106810.0,106800.0,0.00048067]
[1750072696561,1.50062197,106810.0,106800.0,0.00048067]
[1750072696807,1.50716087,106810.0,106800.0,0.19710987]
[1750072697030,1.50062197,106810.0,106800.0,0.19710987]
[1750072697522,1.50716089,106810.0,106800.0,0.19710987]
[1750072697749,1.50716089,106810.0,106800.0,0.00048067]
[1750072697976,1.50054197,106810.0,106800.0,0.00048067]
[1750072698199,1.50708088,106810.0,106800.0,0.00048067]
[1750072698435,1.49114088,106810.0,106800.0,0.24234255]
[1750072698665,1.08450636,106810.0,106800.0,0.24234255]
[1750072698909,1.08450634,106810.0,106800.0,0.24234273]
[1750072699158,1.51903987,106810.0,106800.0,0.2329797]
[1750072699449,1.51903988,106810.0,106800.0,0.2129797]
[1750072699699,1.51903989,106810.0,106800.0,0.2129797]
[1750072699948,1.50967748,106810.0,106800.0,0.22234299]
[1750072700192,1.50313852,106810.0,106800.0,0.22234299]
[1750072700436,0.87120499,106810.0,106800.0,0.22234299]
[1750072700656,0.65550223,106810.0,106800.0,0.24106861]
[1750072700876,0.52220618,106810.0,106800.0,0.24106861]
[1750072701105,0.67792618,106810.0,106800.0,0.24106861]
[1750072701566,0.64702722,106810.0,106800.0,0.24106861]
[1750072702084,0.65738885,106810.0,106800.0,0.24106861]
[1750072702319,0.64802722,106810.0,106800.0,0.24206861]
[1750072703309,0.64798722,106810.0,106800.0,0.24206861]
[1750072704920,0.65734885,106810.0,106800.0,0.24206861]
[1750072705150,0.66671074,106810.0,106800.0,0.24206861]
[1750072705368,0.65734885,106810.0,106800.0,0.24206861]
[1750072706346,1.09188238,106810.0,106800.0,0.24206861]
[1750072706740,1.10124409,106810.0,106800.0,0.24206861]
[1750072707629,1.11060598,106810.0,106800.0,0.24206861]
[1750072707851,1.11996804,106810.0,106800.0,0.24206861]
[1750072708510,0.67607245,106810.0,106800.0,0.24206861]
[1750072708719,1.11060598,106810.0,106800.0,0.24206861]
[1750072708929,1.11996804,106810.0,106800.0,0.24206861]
[1750072709160,1.11060598,106810.0,106800.0,0.24206861]
[1750072709376,1.11996796,106810.0,106800.0,0.24206861]
[1750072709582,1.12933002,106810.0,106800.0,0.24206861]
[1750072709851,0.68515443,106810.0,106800.0,0.24206861]
[1750072710068,1.11968796,106810.0,106800.0,0.24206861]
[1750072710293,1.22529187,106810.0,106800.0,0.24206861]
[1750072710540,1.22529248,106810.0,106800.0,0.24206861]
[1750072711208,1.2252931,106810.0,106800.0,0.24206861]
[1750072711426,1.40318002,106810.0,106800.0,0.21867299]
[1750072711660,1.40318002,106810.0,106800.0,0.19683593]
[1750072711903,1.40318002,106810.0,106800.0,0.20619878]
[1750072712155,1.40318002,106810.0,106800.0,0.22189878]
[1750072712849,1.40318002,106810.0,106800.0,0.23126146]
[1750072713384,1.40318002,106810.0,106800.0,0.22189878]
[1750072713796,1.20656923,106810.0,106800.0,0.23126154]
[1750072714012,1.1972069,106810.0,106800.0,0.23126154]
[1750072714217,1.1972069,106810.0,106800.0,0.23126093]
[1750072714430,1.19720655,106810.0,106800.0,0.23126093]
[1750072714652,1.20656809,106810.0,106800.0,0.23126093]
[1750072715034,1.18784422,106810.0,106800.0,0.25202093]
[1750072715448,1.19720611,106810.0,106800.0,0.25202093]
[1750072715661,0.74394898,106810.0,106800.0,0.25202093]
[1750072715877,1.18784431,106810.0,106800.0,0.25202093]
[1750072716090,0.49230722,106810.0,106800.0,0.29595673]
[1750072716291,0.30758722,106810.0,106800.0,0.25202093]
[1750072716493,0.285413,106810.0,106800.0,0.25202093]
[1750072717356,0.130133,106810.0,106800.0,0.25202093]
[1750072717587,0.130133,106810.0,106800.0,0.68655446]
[1750072717783,0.130133,106810.0,106800.0,0.78270368]
[1750072718649,0.128133,106810.0,106800.0,0.78170368]
[1750072718858,0.128133,106810.0,106800.0,0.79103364]
[1750072719080,0.128133,106810.0,106800.0,0.79303364]
[1750072719752,0.129133,106810.0,106800.0,0.79303364]
[1750072720590,0.129133,106810.0,106800.0,0.34917015]
[1750072720804,0.129133,106810.0,106800.0,0.78370368]
[1750072723244,0.129133,106810.0,106800.0,0.34917015]
[1750072723496,0.129133,106810.0,106800.0,0.78370368]
[1750072724413,0.129133,106810.0,106800.0,0.25302093]
[1750072724639,0.129133,106810.0,106800.0,0.40998093]
[1750072726071,0.129133,106810.0,106800.0,0.25302093]
[1750072736177,0.129133,106810.0,106800.0,0.68755446]
[1750072736584,0.129133,106810.0,106800.0,0.25302093]
[1750072736799,0.129133,106810.0,106800.0,0.77715826]
[1750072738741,0.129133,106810.0,106800.0,0.34262473]
[1750072738957,0.129133,106810.0,106800.0,0.49890473]
[1750072739378,0.129133,106810.0,106800.0,0.34262473]
[1750072739601,0.129133,106810.0,106800.0,0.49882473]
[1750072742934,0.129133,106810.0,106800.0,0.93335826]
[1750072745211,0.129133,106810.0,106800.0,0.96084487]
[1750072746448,0.129133,106810.0,106800.0,1.25964487]
[1750072746642,0.129133,106810.0,106800.0,0.82511134]
[1750072746839,0.129133,106810.0,106800.0,1.25964487]
[1750072750142,0.128133,106810.0,106800.0,1.25964487]
[1750072750363,0.128133,106810.0,106800.0,1.25764487]
[1750072750584,0.129133,106810.0,106800.0,1.26264487]
[1750072751012,0.128133,106810.0,106800.0,1.26264487]
[1750072751434,0.129133,106810.0,106800.0,1.26364487]
[1750072753684,0.129133,106810.0,106800.0,1.24364487]
[1750072757324,0.129133,106810.0,106800.0,0.80911134]
[1750072758155,0.129133,106810.0,106800.0,0.79311134]
[1750072758519,0.145133,106810.0,106800.0,0.35628093]
[1750072758934,0.58888997,106810.0,106800.0,0.35632093]
[1750072759138,0.60170256,106810.0,106800.0,0.35632093]
[1750072759346,0.17666885,106810.0,106800.0,0.20056093]
[1750072759564,0.145133,106810.0,106800.0,0.35632093]
[1750072760032,0.145133,106810.0,106800.0,0.20056093]
[1750072761255,0.16969463,106810.0,106800.0,0.20056093]
[1750072761503,0.16969463,106810.0,106800.0,0.35628093]
[1750072761748,0.160333,106810.0,106800.0,0.35628093]
[1750072761967,0.16969471,106810.0,106800.0,0.35628093]
[1750072762210,0.160333,106810.0,106800.0,0.35628093]
[1750072762420,0.17905643,106810.0,106800.0,0.20056093]
[1750072762633,0.17905634,106810.0,106800.0,0.20056093]
[1750072762902,0.18841814,106810.0,106800.0,0.35644093]
[1750072763319,0.17905634,106810.0,106800.0,0.35644093]
[1750072763525,0.18841814,106810.0,106800.0,0.35644093]
[1750072763737,0.62282584,106810.0,106800.0,0.20056093]
[1750072763952,0.65436204,106810.0,106800.0,0.20056093]
[1750072764383,0.66372419,106810.0,106800.0,0.20056093]
[1750072765919,0.64500006,106810.0,106800.0,0.20056093]
[1750072766089,0.65436204,106810.0,106800.0,0.20056093]
[1750072766961,0.66372419,106810.0,106800.0,0.20056093]
[1750072767197,0.65436204,106810.0,106800.0,0.20056093]
[1750072767628,0.66372419,106810.0,106800.0,0.20056093]
[1750072767839,0.65436204,106810.0,106800.0,0.20056093]
[1750072768916,0.65436204,106810.0,106800.0,0.19819463]
[1750072769571,0.81008204,106810.0,106800.0,0.19819463]
[1750072770683,0.91568604,106810.0,106800.0,0.17946902]
[1750072770895,0.48127834,106810.0,106800.0,0.17946902]
[1750072771105,0.91568604,106810.0,106800.0,0.17946902]
[1750072771327,0.91568595,106810.0,106800.0,0.17946902]
[1750072772398,0.91568656,106810.0,106800.0,0.17946902]
[1750072773620,0.91568647,106810.0,106800.0,0.17946902]
[1750072774925,0.90632423,106810.0,106800.0,0.17946902]
[1750072775156,0.91568647,106810.0,106800.0,0.17946902]
[1750072775364,0.90632423,106810.0,106800.0,0.17946902]
[1750072775788,0.88760019,106810.0,106800.0,0.17946902]
[1750072777584,0.24754898,106810.0,106800.0,0.17946902]
[1750072777818,0.38097476,106810.0,106800.0,0.17946902]
[1750072777991,0.284693,106810.0,106800.0,0.20054902]
[1750072780790,0.129133,106810.0,106800.0,0.21694902]
[1750072780998,0.284613,106810.0,106800.0,0.21694902]
[1750072781746,0.284533,106810.0,106800.0,0.21694902]
[1750072781954,0.129133,106810.0,106800.0,0.21694902]
[1750072782166,0.284533,106810.0,106800.0,0.20054902]
[1750072782373,0.31224127,106810.0,106800.0,0.20054902]
[1750072782793,0.31224127,106810.0,106800.0,0.21564902]